fUST/lending_fUST_20250605
["ID","MTS","AMOUNT","RATE_DAILY","PERIOD"]
[364362169,1749081045146,-440.0,0.00019633,2]
[364362171,1749081045157,-2614.29,0.00019633,2]
[364362173,1749081045167,-440.0,0.00019634,2]
[364362175,1749081045176,-849.78,0.00019634,2]
[364362177,1749081045186,-579.14,0.00019634,2]
[364362179,1749081045195,-4117.45,0.00019634,2]
[364362181,1749081045204,-640.15,0.00019634,2]
[364362183,1749081045214,-4472.77,0.00019634,2]
[364362185,1749081045223,-849.4,0.00019634,2]
[364362187,1749081045232,-440.0,0.00019634,2]
[364362189,1749081045242,-918.13,0.00019634,2]
[364362191,1749081045251,-440.0,0.00019634,2]
[364362193,1749081045262,-440.0,0.00019634,2]
[364362195,1749081045271,-1332.82,0.00019634,2]
[364362197,1749081045280,-570.78,0.00019634,2]
[364362199,1749081045289,-440.0,0.00019634,2]
[364362200,1749081045298,-330.0,0.00019634,2]
[364362202,1749081045308,-440.0,0.00019634,2]
[364362212,1749081045401,-1210.67,0.00019634,2]
[364362215,1749081045412,-440.0,0.00019634,2]
[364362217,1749081045422,-440.0,0.00019634,2]
[364362218,1749081045432,-340.0,0.00019635,2]
[364362221,1749081045443,-456.471907,0.00019635,2]
[364362222,1749081045453,-340.0,0.00019635,2]
[364362225,1749081045463,-440.0,0.00019635,2]
[364362227,1749081045473,-440.0,0.00019635,2]
[364362228,1749081045483,-440.0,0.00019635,2]
[364362231,1749081045492,-440.0,0.00019635,2]
[364362232,1749081045502,-440.0,0.00019635,2]
[364362235,1749081045512,-440.0,0.00019635,2]
[364362236,1749081045521,-1342.08623891,0.00019728,2]
[364362238,1749081045531,-314.98208564,0.00019788,2]
[364362240,1749081045541,-160.0,0.00019788,2]
[364362242,1749081045550,-160.0,0.00019788,2]
[364362244,1749081045559,-229.45591648,0.00019788,2]
[364362246,1749081045568,-160.0,0.00019788,2]
[364362248,1749081045578,-423.69433488,0.00019839,2]
[364362250,1749081045587,-842.5625,0.00019839,2]
[364362252,1749081045596,-176.014,0.00019857,2]
[364362254,1749081045606,-440.0,0.00019907,2]
[364362256,1749081045615,-440.0,0.00019907,2]
[364362258,1749081045625,-458.2,0.00019907,2]
[364362260,1749081045634,-320.0,0.00019907,2]
[364362262,1749081045644,-440.0,0.00019907,2]
[364362264,1749081045654,-1464.11,0.00019907,2]
[364362266,1749081045664,-2560.82,0.00019907,2]
[364362268,1749081045674,-2762.2,0.00019907,2]
[364362270,1749081045683,-323.85,0.00019907,2]
[364362272,1749081045693,-704.83,0.00019907,2]
[364362274,1749081045702,-1529.84,0.00019907,2]
[364362276,1749081045711,-440.0,0.00019907,2]
[364362278,1749081045720,-440.0,0.00019907,2]
[364362280,1749081045730,-440.0,0.00019907,2]
[364362282,1749081045739,-440.0,0.00019907,2]
[364362284,1749081045748,-440.0,0.00019907,2]
[364362286,1749081045757,-439.95897274,0.00019907,2]
[364362288,1749081045767,-440.0,0.00019907,2]
[364362290,1749081045776,-1553.6,0.00019907,2]
[364362292,1749081045786,-440.0,0.00019907,2]
[364362294,1749081045795,-575.03,0.00019907,2]
[364362296,1749081045805,-440.0,0.00019907,2]
[364362298,1749081045814,-2614.29,0.00019907,2]
[364362300,1749081045824,-440.0,0.00019908,2]
[364362302,1749081045833,-849.78,0.00019908,2]
[364362304,1749081045842,-579.14,0.00019908,2]
[364362306,1749081045851,-4117.45,0.00019908,2]
[364362308,1749081045862,-640.15,0.00019908,2]
[364362310,1749081045872,-4472.77,0.00019908,2]
[364362312,1749081045881,-849.4,0.00019908,2]
[364362314,1749081045891,-440.0,0.00019908,2]
[364362316,1749081045900,-918.13,0.00019908,2]
[364362318,1749081045911,-440.0,0.00019908,2]
[364362320,1749081045924,-330.0,0.00019908,2]
[364362322,1749081045935,-1332.82,0.00019908,2]
[364362324,1749081045944,-570.78,0.00019908,2]
[364362326,1749081045954,-330.0,0.00019908,2]
[364362328,1749081045964,-440.0,0.00019908,2]
[364362330,1749081045973,-1210.67,0.00019908,2]
[364362332,1749081045983,-440.0,0.00019908,2]
[364362333,1749081045992,-330.0,0.00019908,2]
[364362335,1749081046001,-440.0,0.00019909,2]
[364362337,1749081046011,-440.0,0.00019909,2]
[364362339,1749081046020,-330.0,0.00019909,2]
[364362341,1749081046029,-330.0,0.00019909,2]
[364362343,1749081046038,-440.0,0.00019909,2]
[364362345,1749081046047,-440.0,0.00019909,2]
[364362347,1749081046057,-1342.08623891,0.00019934,2]
[364362349,1749081046067,-1749.41132836,0.00020011,2]
[364362351,1749081046076,-1500.0,0.00020068,2]
[364362353,1749081046086,-1342.08623891,0.00020141,2]
[364362355,1749081046095,-440.0,0.00020181,2]
[364362357,1749081046104,-440.0,0.00020181,2]
[364362359,1749081046114,-458.2,0.00020181,2]
[364362361,1749081046123,-701.71,0.00020181,2]
[364362363,1749081046132,-440.0,0.00020181,2]
[364362365,1749081046142,-1464.11,0.00020181,2]
[364362367,1749081046152,-2560.82,0.00020181,2]
[364362369,1749081046162,-2762.2,0.00020181,2]
[364362371,1749081046171,-704.83,0.00020181,2]
[364362373,1749081046181,-1529.84,0.00020181,2]
[364362375,1749081046191,-440.0,0.00020181,2]
[364362377,1749081046200,-440.0,0.00020181,2]
[364362379,1749081046210,-440.0,0.00020181,2]
[364362381,1749081046219,-440.0,0.00020181,2]
[364362383,1749081046230,-440.0,0.00020181,2]
[364362385,1749081046239,-440.0,0.00020181,2]
[364362387,1749081046248,-1553.6,0.00020181,2]
[364362389,1749081046258,-440.0,0.00020181,2]
[364362391,1749081046268,-575.03,0.00020181,2]
[364362393,1749081046278,-440.0,0.00020181,2]
[364362395,1749081046288,-2614.29,0.00020181,2]
[364362397,1749081046297,-440.0,0.00020182,2]
[364362399,1749081046307,-849.78,0.00020182,2]
[364362401,1749081046319,-579.14,0.00020182,2]
[364362402,1749081046329,-4117.45,0.00020182,2]
[364362403,1749081046338,-640.15,0.00020182,2]
[364362404,1749081046348,-4472.77,0.00020182,2]
[364362405,1749081046357,-849.4,0.00020182,2]
[364362406,1749081046366,-440.0,0.00020182,2]
[364362407,1749081046376,-918.13,0.00020182,2]
[364362408,1749081046386,-440.0,0.00020182,2]
[364362409,1749081046396,-1332.82,0.00020182,2]
[364362410,1749081046408,-570.78,0.00020182,2]
[364362412,1749081046418,-440.0,0.00020182,2]
[364362414,1749081046427,-440.0,0.00020182,2]
[364362416,1749081046437,-1210.67,0.00020182,2]
[364362418,1749081046446,-440.0,0.00020183,2]
[364362420,1749081046455,-440.0,0.00020183,2]
[364362422,1749081046465,-440.0,0.00020183,2]
[364362424,1749081046474,-440.0,0.00020183,2]
[364362426,1749081046485,-287.098045,0.00020187,2]
[364362428,1749081046494,-151.0,0.000202,4]
[364362430,1749081046503,-1925.46405743,0.00020219,2]
[364362432,1749081046513,-1342.08623891,0.00020348,3]
[364362434,1749081046522,-440.0,0.00020455,2]
[364362436,1749081046532,-440.0,0.00020455,2]
[364362438,1749081046541,-458.2,0.00020455,2]
[364362440,1749081046551,-300.0,0.00020455,2]
[364362442,1749081046561,-1464.11,0.00020455,2]
[364362444,1749081046570,-2560.82,0.00020455,2]
[364362446,1749081046580,-2762.2,0.00020455,2]
[364362448,1749081046590,-704.83,0.00020455,2]
[364362450,1749081046599,-1529.84,0.00020455,2]
[364362452,1749081046609,-440.0,0.00020455,2]
[364362454,1749081046618,-440.0,0.00020455,2]
[364362456,1749081046628,-440.0,0.00020455,2]
[364362458,1749081046644,-440.0,0.00020455,2]
[364362460,1749081046654,-440.0,0.00020455,2]
[364362462,1749081046664,-440.0,0.00020455,2]
[364362464,1749081046675,-1553.6,0.00020455,2]
[364362466,1749081046685,-440.0,0.00020455,2]
[364362468,1749081046694,-575.03,0.00020455,2]
[364362470,1749081046703,-440.0,0.00020455,2]
[364362472,1749081046713,-2614.29,0.00020455,2]
[364362474,1749081046722,-440.0,0.00020456,2]
[364362476,1749081046731,-849.78,0.00020456,2]
[364362478,1749081046741,-579.14,0.00020456,2]
[364362480,1749081046750,-4117.45,0.00020456,2]
[364362482,1749081046759,-640.15,0.00020456,2]
[364362484,1749081046769,-4472.77,0.00020456,2]
[364362486,1749081046779,-849.4,0.00020456,2]
[364362488,1749081046788,-440.0,0.00020456,2]
[364362490,1749081046798,-918.13,0.00020456,2]
[364362492,1749081046807,-440.0,0.00020456,2]
[364362494,1749081046818,-1332.82,0.00020456,2]
[364362496,1749081046827,-151.0,0.00020456,2]
[364362498,1749081046838,-570.78,0.00020456,2]
[364362500,1749081046847,-440.0,0.00020456,2]
[364362502,1749081046857,-440.0,0.00020456,2]
[364362504,1749081046866,-1210.67,0.00020456,2]
[364362506,1749081046876,-440.0,0.00020457,2]
[364362508,1749081046885,-440.0,0.00020457,2]
[364362510,1749081046895,-167.61938942,0.00020548,2]
[364362512,1749081046904,-1342.08623891,0.00020555,3]
[364362514,1749081046915,-1555.07,0.000206,2]
[364362516,1749081046925,-46199.37,0.000206,2]
[364362518,1749081046934,-151.0,0.000206,2]
[364362520,1749081046944,-151.0,0.000206,2]
[364362522,1749081046954,-151.0,0.000206,2]
[364362524,1749081046963,-360.777426,0.000206,2]
[364362534,1749081047048,-360.777426,0.000206,2]
[364362536,1749081047058,-151.0,0.000206,2]
[364362538,1749081047067,-440.0,0.00020729,2]
[364362540,1749081047077,-440.0,0.00020729,2]
[364362542,1749081047087,-458.2,0.00020729,2]
[364362544,1749081047097,-1464.11,0.00020729,2]
[364362546,1749081047107,-2560.82,0.00020729,2]
[364362548,1749081047116,-2762.2,0.00020729,2]
[364362550,1749081047125,-704.83,0.00020729,2]
[364362552,1749081047135,-1529.84,0.00020729,2]
[364362554,1749081047144,-440.0,0.00020729,2]
[364362556,1749081047153,-440.0,0.00020729,2]
[364362558,1749081047163,-440.0,0.00020729,2]
[364362560,1749081047173,-440.0,0.00020729,2]
[364362562,1749081047181,-440.0,0.00020729,2]
[364362564,1749081047191,-440.0,0.00020729,2]
[364362566,1749081047200,-1553.6,0.00020729,2]
[364362568,1749081047210,-440.0,0.00020729,2]
[364362570,1749081047219,-575.03,0.00020729,2]
[364362572,1749081047231,-440.0,0.00020729,2]
[364362574,1749081047240,-2614.29,0.00020729,2]
[364362576,1749081047249,-440.0,0.0002073,2]
[364362578,1749081047259,-849.78,0.0002073,2]
[364362580,1749081047268,-151.0,0.0002073,2]
[364362582,1749081047277,-151.0,0.0002073,2]
[364362583,1749081047286,-579.14,0.0002073,2]
[364362585,1749081047296,-4117.45,0.0002073,2]
[364362587,1749081047305,-151.0,0.0002073,2]
[364362590,1749081047315,-640.15,0.0002073,2]
[364362592,1749081047328,-4472.77,0.0002073,2]
[364362594,1749081047338,-849.4,0.0002073,2]
[364362596,1749081047347,-537.3549395,0.0002073,2]
[364362598,1749081047357,-918.13,0.0002073,2]
[364362600,1749081047366,-440.0,0.0002073,2]
[364362602,1749081047375,-1332.82,0.0002073,2]
[364362604,1749081047385,-570.78,0.0002073,2]
[364362606,1749081047396,-440.0,0.0002073,2]
[364362608,1749081047405,-440.0,0.0002073,2]
[364362610,1749081047415,-1210.67,0.0002073,2]
[364362612,1749081047424,-440.0,0.00020731,2]
[364362614,1749081047434,-440.0,0.00020731,2]
[364362616,1749081047443,-1342.08623891,0.00020762,3]
[364362618,1749081047453,-151.0,0.000209,3]
[364362620,1749081047462,-1342.08623891,0.00020969,4]
[364362622,1749081047471,-440.0,0.00021003,2]
[364362624,1749081047480,-440.0,0.00021003,2]
[364362626,1749081047489,-458.2,0.00021003,2]
[364362628,1749081047498,-701.71,0.00021003,2]
[364362630,1749081047508,-1464.11,0.00021003,2]
[364362632,1749081047517,-2560.82,0.00021003,2]
[364362634,1749081047527,-2762.2,0.00021003,2]
[364362636,1749081047536,-704.83,0.00021003,2]
[364362638,1749081047545,-1529.84,0.00021003,2]
[364362640,1749081047554,-440.0,0.00021003,2]
[364362642,1749081047563,-440.0,0.00021003,2]
[364362644,1749081047572,-440.0,0.00021003,2]
[364362646,1749081047581,-440.0,0.00021003,2]
[364362648,1749081047590,-440.0,0.00021003,2]
[364362650,1749081047600,-440.0,0.00021003,2]
[364362652,1749081047609,-1553.6,0.00021003,2]
[364362654,1749081047619,-440.0,0.00021003,2]
[364362656,1749081047628,-575.03,0.00021003,2]
[364362658,1749081047638,-440.0,0.00021003,2]
[364362660,1749081047647,-2614.29,0.00021003,2]
[364362662,1749081047657,-475.42,0.00021004,2]
[364362664,1749081047666,-849.78,0.00021004,2]
[364362666,1749081047675,-579.14,0.00021004,2]
[364362668,1749081047685,-4117.45,0.00021004,2]
[364362670,1749081047694,-640.15,0.00021004,2]
[364362672,1749081047707,-4472.77,0.00021004,2]
[364362674,1749081047723,-849.4,0.00021004,2]
[364362676,1749081047734,-918.13,0.00021004,2]
[364362678,1749081047744,-440.0,0.00021004,2]
[364362680,1749081047753,-1332.82,0.00021004,2]
[364362682,1749081047763,-570.78,0.00021004,2]
[364362684,1749081047772,-440.0,0.00021004,2]
[364362686,1749081047781,-440.0,0.00021004,2]
[364362688,1749081047790,-1210.67,0.00021004,2]
[364362690,1749081047800,-440.0,0.00021005,2]
[364362692,1749081047809,-440.0,0.00021005,2]
[364362694,1749081047818,-1500.0,0.00021164,2]
[364362696,1749081047828,-1342.08623891,0.00021176,4]
[364362698,1749081047837,-1925.46405743,0.00021178,2]
[364362700,1749081047847,-440.0,0.00021277,2]
[364362702,1749081047856,-440.0,0.00021277,2]
[364362704,1749081047865,-458.2,0.00021277,2]
[364362706,1749081047875,-1464.11,0.00021277,2]
[364362708,1749081047884,-2560.82,0.00021277,2]
[364362710,1749081047894,-2762.2,0.00021277,2]
[364362712,1749081047903,-704.83,0.00021277,2]
[364362714,1749081047913,-1529.84,0.00021277,2]
[364362716,1749081047922,-440.0,0.00021277,2]
[364362718,1749081047931,-440.0,0.00021277,2]
[364362720,1749081047940,-440.0,0.00021277,2]
[364362722,1749081047952,-440.0,0.00021277,2]
[364362724,1749081047962,-440.0,0.00021277,2]
[364362726,1749081047971,-440.0,0.00021277,2]
[364362728,1749081047980,-1553.6,0.00021277,2]
[364362730,1749081047990,-440.0,0.00021277,2]
[364362732,1749081047999,-575.03,0.00021277,2]
[364362734,1749081048008,-440.0,0.00021277,2]
[364362736,1749081048017,-2614.29,0.00021277,2]
[364362738,1749081048027,-849.78,0.00021278,2]
[364362740,1749081048037,-579.14,0.00021278,2]
[364362742,1749081048046,-4117.45,0.00021278,2]
[364362744,1749081048055,-640.15,0.00021278,2]
[364362746,1749081048064,-4472.77,0.00021278,2]
[364362748,1749081048074,-849.4,0.00021278,2]
[364362750,1749081048083,-918.13,0.00021278,2]
[364362752,1749081048092,-440.0,0.00021278,2]
[364362754,1749081048101,-1332.82,0.00021278,2]
[364362756,1749081048110,-570.78,0.00021278,2]
[364362758,1749081048119,-440.0,0.00021278,2]
[364362760,1749081048128,-440.0,0.00021278,2]
[364362762,1749081048138,-1210.67,0.00021278,2]
[364362764,1749081048147,-440.0,0.00021279,2]
[364362766,1749081048157,-440.0,0.00021279,2]
[364362768,1749081048167,-797.3,0.000213,2]
[364362770,1749081048176,-151.0,0.000213,2]
[364362772,1749081048189,-167.87678,0.000213,2]
[364362774,1749081048198,-151.0,0.000213,2]
[364362776,1749081048208,-151.0,0.000213,2]
[364362778,1749081048217,-1342.08623891,0.00021383,5]
[364362780,1749081048227,-208974.18344,0.00021499,2]
[364362782,1749081048237,-151.0,0.000215,4]
[364362784,1749081048246,-440.0,0.00021551,2]
[364362786,1749081048255,-440.0,0.00021551,2]
[364362788,1749081048265,-458.2,0.00021551,2]
[364362790,1749081048275,-1464.11,0.00021551,2]
[364362792,1749081048286,-2560.82,0.00021551,2]
[364362795,1749081048295,-2762.2,0.00021551,2]
[364362797,1749081048304,-704.83,0.00021551,2]
[364362798,1749081048315,-1529.84,0.00021551,2]
[364362800,1749081048326,-463.21,0.00021551,2]
[364362802,1749081048335,-440.0,0.00021551,2]
[364362804,1749081048344,-440.0,0.00021551,2]
[364362806,1749081048354,-440.0,0.00021551,2]
[364362808,1749081048363,-440.0,0.00021551,2]
[364362810,1749081048372,-440.0,0.00021551,2]
[364362812,1749081048382,-1553.6,0.00021551,2]
[364362814,1749081048392,-260.0,0.00021551,2]
[364362816,1749081048401,-575.03,0.00021551,2]
[364362818,1749081048410,-323.72,0.00021551,2]
[364362820,1749081048420,-2614.29,0.00021551,2]
[364362822,1749081048429,-849.78,0.00021552,2]
[364362824,1749081048438,-579.14,0.00021552,2]
[364362826,1749081048447,-4117.45,0.00021552,2]
[364362828,1749081048456,-640.15,0.00021552,2]
[364362830,1749081048466,-4472.77,0.00021552,2]
[364362840,1749081048550,-849.4,0.00021552,2]
[364362842,1749081048560,-918.13,0.00021552,2]
[364362844,1749081048569,-440.0,0.00021552,2]
[364362846,1749081048578,-1332.82,0.00021552,2]
[364362848,1749081048587,-151.0,0.00021552,2]
[364362850,1749081048596,-570.78,0.00021552,2]
[364362852,1749081048605,-440.0,0.00021552,2]
[364362854,1749081048614,-440.0,0.00021552,2]
[364362856,1749081048624,-1210.67,0.00021552,2]
[364362858,1749081048633,-440.0,0.00021553,2]
[364362860,1749081048642,-440.0,0.00021553,2]
[364362862,1749081048652,-1342.08623891,0.0002159,5]
[364362864,1749081048663,-1342.08623891,0.00021797,6]
[364362866,1749081048673,-155.7,0.00021825,2]
[364362868,1749081048682,-458.2,0.00021825,2]
[364362870,1749081048692,-1464.11,0.00021825,2]
[364362872,1749081048701,-2560.82,0.00021825,2]
[364362874,1749081048710,-2762.2,0.00021825,2]
[364362876,1749081048719,-704.83,0.00021825,2]
[364362878,1749081048728,-1529.84,0.00021825,2]
[364362880,1749081048737,-376.73,0.00021825,2]
[364362882,1749081048746,-241.45,0.00021825,2]
[364362884,1749081048756,-440.0,0.00021825,2]
[364362886,1749081048765,-440.0,0.00021825,2]
[364362888,1749081048774,-440.0,0.00021825,2]
[364362890,1749081048783,-1553.6,0.00021825,2]
[364362892,1749081048792,-575.03,0.00021825,2]
[364362894,1749081048802,-2614.29,0.00021825,2]
[364362896,1749081048811,-849.78,0.00021826,2]
[364362899,1749081048821,-579.14,0.00021826,2]
[364362901,1749081048830,-4117.45,0.00021826,2]
[364362903,1749081048839,-640.15,0.00021826,2]
[364362905,1749081048849,-4472.77,0.00021826,2]
[364362907,1749081048859,-849.4,0.00021826,2]
[364362909,1749081048868,-918.13,0.00021826,2]
[364362911,1749081048878,-440.0,0.00021826,2]
[364362913,1749081048887,-1332.82,0.00021826,2]
[364362915,1749081048897,-570.78,0.00021826,2]
[364362917,1749081048906,-440.0,0.00021826,2]
[364362919,1749081048918,-440.0,0.00021826,2]
[364362921,1749081048927,-1210.67,0.00021826,2]
[364362923,1749081048937,-440.0,0.00021827,2]
[364362925,1749081048946,-346.62810943,0.00021827,2]
[364362927,1749081048955,-500.0,0.00021917,2]
[364362929,1749081048964,-500.0,0.00021917,2]
[364362931,1749081048974,-500.0,0.00021917,2]
[364362933,1749081048983,-500.0,0.00021917,2]
[364362935,1749081048992,-500.0,0.00021917,2]
[364362937,1749081049002,-500.0,0.00021917,2]
[364362939,1749081049011,-570.15,0.00021917,2]
[364362941,1749081049021,-500.0,0.00021917,2]
[364362943,1749081049030,-188.0,0.00022,2]
[364362945,1749081049040,-46199.37,0.00022,2]
[364362947,1749081049049,-171.0,0.00022,2]
[364362949,1749081049059,-151.0,0.00022,7]
[364362951,1749081049068,-152.691477,0.00022,7]
[364362953,1749081049078,-360.777426,0.00022,7]
[364362955,1749081049088,-360.777426,0.00022,7]
[364362957,1749081049101,-151.0,0.00022,7]
[364362959,1749081049110,-1342.08623891,0.00022003,6]
[364362961,1749081049120,-18624.77406104,0.00022099,3]
[364362963,1749081049129,-458.2,0.00022099,2]
[364362965,1749081049139,-701.71,0.00022099,2]
[364362968,1749081049149,-1464.11,0.00022099,2]
[364362970,1749081049159,-2560.82,0.00022099,2]
[364362972,1749081049171,-2762.2,0.00022099,2]
[364362974,1749081049181,-704.83,0.00022099,2]
[364362975,1749081049191,-1529.84,0.00022099,2]
[364362978,1749081049200,-589.94,0.00022099,2]
[364362980,1749081049210,-1553.6,0.00022099,2]
[364362981,1749081049220,-575.03,0.00022099,2]
[364362984,1749081049231,-2614.29,0.00022099,2]
[364362986,1749081049241,-849.78,0.000221,2]
[364362988,1749081049250,-151.0,0.000221,7]
[364362990,1749081049260,-151.0,0.000221,7]
[364362992,1749081049269,-579.14,0.000221,2]
[364362994,1749081049278,-4117.45,0.000221,2]
[364362996,1749081049287,-151.0,0.000221,7]
[364362998,1749081049296,-640.15,0.000221,2]
[364363000,1749081049306,-4472.77,0.000221,2]
[364363002,1749081049315,-849.4,0.000221,2]
[364363004,1749081049327,-918.13,0.000221,2]
[364363006,1749081049336,-440.0,0.000221,2]
[364363008,1749081049345,-1332.82,0.000221,2]
[364363010,1749081049355,-570.78,0.000221,2]
[364363012,1749081049365,-440.0,0.000221,2]
[364363014,1749081049375,-1210.67,0.000221,2]
[364363016,1749081049384,-440.0,0.00022101,2]
[364363018,1749081049394,-2380.45724693,0.00022198,2]
[364363020,1749081049406,-151.0,0.000222,7]
[364363022,1749081049422,-1342.08623891,0.0002221,6]
[364363024,1749081049431,-1500.0,0.0002226,2]
[364363026,1749081049441,-364.5816698,0.00022274,2]
[364363028,1749081049451,-364.5816698,0.00022274,2]
[364363029,1749081049460,-364.5816698,0.00022274,2]
[364363032,1749081049470,-1555.07,0.000223,7]
[364363034,1749081049480,-364.5816698,0.00022301,2]
[364363036,1749081049489,-364.5816698,0.00022301,2]
[364363038,1749081049499,-364.5816698,0.00022301,2]
[364363040,1749081049509,-419.3550987,0.00022301,2]
[364363041,1749081049518,-458.2,0.00022373,2]
[364363044,1749081049528,-1464.11,0.00022373,2]
[364363046,1749081049538,-2560.82,0.00022373,2]
[364363048,1749081049548,-2762.2,0.00022373,2]
[364363050,1749081049557,-704.83,0.00022373,2]
[364363052,1749081049566,-1529.84,0.00022373,2]
[364363053,1749081049576,-1553.6,0.00022373,2]
[364363055,1749081049585,-575.03,0.00022373,2]
[364363058,1749081049595,-2614.29,0.00022373,2]
[364363060,1749081049604,-151.0,0.00022374,7]
[364363062,1749081049613,-849.78,0.00022374,2]
[364363063,1749081049623,-151.0,0.00022374,7]
[364363065,1749081049632,-579.14,0.00022374,2]
[364363067,1749081049642,-4117.45,0.00022374,2]
[364363070,1749081049651,-151.0,0.00022374,7]
[364363072,1749081049662,-640.15,0.00022374,2]
[364363074,1749081049672,-4472.77,0.00022374,2]
[364363076,1749081049682,-849.4,0.00022374,2]
[364363078,1749081049691,-918.13,0.00022374,2]
[364363080,1749081049701,-322.17,0.00022374,2]
[364363082,1749081049711,-1332.82,0.00022374,2]
[364363084,1749081049720,-570.78,0.00022374,2]
[364363086,1749081049730,-440.0,0.00022374,2]
[364363088,1749081049740,-1210.67,0.00022374,2]
[364363090,1749081049749,-417.56,0.00022375,2]
[364363092,1749081049759,-1342.08623891,0.00022417,7]
[364363094,1749081049768,-500.0,0.00022465,2]
[364363096,1749081049778,-158.575084,0.00022548,2]
[364363098,1749081049788,-153.0,0.00022548,2]
[364363100,1749081049798,-153.0,0.00022548,2]
[364363102,1749081049807,-176.6037853,0.00022548,2]
[364363104,1749081049816,-598.3617362,0.00022548,2]
[364363106,1749081049826,-153.0,0.00022548,2]
[364363108,1749081049835,-158.575084,0.00022548,2]
[364363110,1749081049845,-153.0,0.00022548,2]
[364363112,1749081049855,-176.6037853,0.00022548,2]
[364363114,1749081049866,-153.0,0.00022548,2]
[364363123,1749081049947,-572.7197194,0.00022548,2]
[364363125,1749081049957,-158.575084,0.00022548,2]
[364363128,1749081049968,-176.6037853,0.00022548,2]
[364363129,1749081049977,-572.7197194,0.00022548,2]
[364363131,1749081049987,-158.575084,0.00022548,2]
[364363133,1749081049997,-153.0,0.00022548,2]
[364363135,1749081050006,-176.6037853,0.00022548,2]
[364363137,1749081050015,-572.7197194,0.00022548,2]
[364363139,1749081050025,-306.0,0.00022548,2]
[364363142,1749081050035,-158.575084,0.00022548,2]
[364363143,1749081050044,-176.6037853,0.00022548,2]
[364363146,1749081050054,-1145.4394388,0.00022548,2]
[364363148,1749081050064,-153.0,0.00022548,2]
[364363150,1749081050074,-176.1536305,0.00022548,2]
[364363152,1749081050084,-158.2157974,0.00022548,2]
[364363154,1749081050093,-572.7197194,0.00022548,2]
[364363156,1749081050103,-153.0,0.00022548,2]
[364363158,1749081050112,-207.4,0.0002256,2]
[364363160,1749081050122,-500.0,0.0002256,2]
[364363162,1749081050133,-500.0,0.0002256,2]
[364363164,1749081050144,-500.0,0.0002256,2]
[364363166,1749081050154,-500.0,0.0002256,2]
[364363168,1749081050168,-500.0,0.0002256,2]
[364363170,1749081050178,-500.0,0.0002256,2]
[364363172,1749081050189,-500.0,0.0002256,2]
[364363174,1749081050199,-500.0,0.0002256,2]
[364363176,1749081050209,-5000.0,0.0002256,2]
[364363178,1749081050218,-500.0,0.0002256,2]
[364363180,1749081050228,-500.0,0.0002256,2]
[364363182,1749081050237,-500.0,0.0002256,2]
[364363184,1749081050247,-500.0,0.0002256,2]
[364363186,1749081050257,-500.0,0.0002256,2]
[364363188,1749081050267,-500.0,0.0002256,2]
[364363190,1749081050276,-500.0,0.0002256,2]